[Event "18th Prague Open-A 2019"]
[Site "Prague"]
[Date "2019.01.17"]
[Round "8"]
[White "Mis, Mieszko"]
[Black "Lin, Yi"]
[Result "1/2-1/2"]
[ECO "D71"]
[WhiteElo "2242"]
[BlackElo "2359"]
[Annotator "NA"]
[PlyCount "48"]
[EventDate "2019.01.11"]
[EventType "swiss"]
[EventCountry "CZE"]
[SourceTitle "playchess.com"]
[Source "ChessBase"]
[SourceQuality "1"]
[TimeControl "40/5400+30:1800+30"]

1. d4 {[%emt 0:00:00]} Nf6 {[%emt 0:00:00]} 2. c4 {[%emt 0:00:00]} g6 {[%emt 0:00:00]} 3. g3 {[%emt 0:00:22]} c6 {[%emt 0:00:00]} 4. Bg2 {[%emt 0:00:38]} d5 {[%emt 0:00:00]} 5. Qa4 {[%emt 0:00:30]} Nfd7 {[%emt 0:01:55]} 6. cxd5 {[%emt 0:00:18]} Nb6 {[%emt 0:00:05]} 7. Qd1 {[%emt 0:00:37]} cxd5 {[%emt 0:00:06]} 8. Nc3 {[%emt 0:00:18]} Bg7 {[%emt 0:00:42]} 9. e3 {[%emt 0:01:19]} Nc6 {[%emt 0:01:21]} 10. Nge2 {[%emt 0:00:21]} O-O {[%emt 0:01:34]} 11. O-O {[%emt 0:00:41]} Bg4 {[%emt 0:13:51]} 12. h3 {[%emt 0:15:46]} Bxe2 {[%emt 0:00:08]} 13. Qxe2 {[%emt 0:00:04]} Rc8 {[%emt 0:00:45]} 14. Bd2 {[%emt 0:06:00]} e6 {[%emt 0:02:32]} 15. Rfc1 {[%emt 0:04:22]} Nc4 {[%emt 0:02:07]} 16. Be1 {[%emt 0:03:15]} Qd7 {[%emt 0:03:11]} 17. b3 {[%emt 0:04:45]} Nd6 {[%emt 0:00:17]} 18. Na4 {[%emt 0:02:05]} b6 {[%emt 0:06:50]} 19. Qd3 {[%emt 0:11:43]} Ne7 {[%emt 0:02:15]} 20. Bf1 {[%emt 0:04:03]} Rxc1 {[%emt 0:04:43]} 21. Rxc1 {[%emt 0:00:27]} Rc8 {[%emt 0:00:13]} 22. Rxc8+ {[%emt 0:02:26]} Ndxc8 {[%emt 0:05:07]} 23. Nc3 {[%emt 0:03:16]} Nc6 {[%emt 0:04:41]} 24. Qa6 {[%emt 0:06:18]} Nb8 {[%emt 0:03:14]} 1/2-1/2

[Event "18th Prague Open-A 2019"]
[Site "Prague"]
[Date "2019.01.17"]
[Round "8"]
[White "Sindler, Michal"]
[Black "Gschnitzer, Oswald"]
[Result "1/2-1/2"]
[ECO "B30"]
[WhiteElo "2221"]
[BlackElo "2370"]
[Annotator "NA"]
[PlyCount "109"]
[EventDate "2019.01.11"]
[EventType "swiss"]
[EventCountry "CZE"]
[SourceTitle "playchess.com"]
[Source "ChessBase"]
[SourceQuality "1"]
[TimeControl "40/5400+30:1800+30"]

1. e4 {[%emt 0:09:33]} c5 {[%emt 0:00:00]} 2. Nf3 {[%emt 0:00:05]} Nc6 {[%emt 0:00:00]} 3. Bb5 {[%emt 0:00:17]} d6 {[%emt 0:00:09]} 4. Bxc6+ {[%emt 0:00:17]} bxc6 {[%emt 0:00:04]} 5. O-O {[%emt 0:00:08]} Bg4 {[%emt 0:00:28]} 6. h3 {[%emt 0:01:12]} Bh5 {[%emt 0:00:13]} 7. c3 {[%emt 0:01:08]} Nf6 {[%emt 0:01:59]} 8. Re1 {[%emt 0:09:59]} e6 {[%emt 0:04:00]} 9. d4 {[%emt 0:07:41]} Nd7 {[%emt 0:05:01]} 10. Nbd2 {[%emt 0:12:26]} Be7 {[%emt 0:03:02]} 11. b3 {[%emt 0:09:16]} O-O {[%emt 0:05:37]} 12. Bb2 {[%emt 0:01:43]} d5 {[%emt 0:04:03]} 13. c4 {[%emt 0:04:05]} cxd4 {[%emt 0:12:39]} 14. g4 {[%emt 0:05:23]} Bg6 {[%emt 0:02:07]} 15. Nxd4 {[%emt 0:00:46]} Bc5 {[%emt 0:07:14]} 16. cxd5 {[%emt 0:03:28]} cxd5 {[%emt 0:00:45]} 17. exd5 {[%emt 0:00:47]} exd5 {[%emt 0:04:32]} 18. Qf3 {[%emt 0:05:16]} Nf6 {[%emt 0:11:30]} 19. Nf5 {[%emt 0:03:05]} d4 {[%emt 0:03:33]} 20. Re5 {[%emt 0:03:44]} Rc8 {[%emt 0:10:22]} 21. Nc4 {[%emt 0:01:26]} Re8 {[%emt 0:03:43]} 22. Rd1 {[%emt 0:01:52]} Rxe5 {[%emt 0:03:21]} 23. Nxe5 {[%emt 0:00:15]} Bxf5 {[%emt 0:01:10]} 24. Qxf5 {[%emt 0:00:42]} Rc7 {[%emt 0:02:07]} 25. Nf3 {[%emt 0:03:34]} g6 {[%emt 0:06:22]} 26. Qe5 {[%emt 0:00:49]} Bb6 {[%emt 0:03:54]} 27. Bxd4 {[%emt 0:01:22]} Bxd4 {[%emt 0:03:00]} 28. Rxd4 {[%emt 0:00:08]} Nd7 {[%emt 0:00:23]} 29. Qd6 {[%emt 0:00:46]} Qc8 {[%emt 0:00:32]} 30. Rf4 {[%emt 0:01:47]} Nf8 {[%emt 0:00:57]} 31. Qd5 {[%emt 0:01:31]} Rc1+ {[%emt 0:00:30]} 32. Kg2 {[%emt 0:00:06]} Ne6 {[%emt 0:00:09]} 33. Rc4 {[%emt 0:01:23]} Rxc4 {[%emt 0:00:46]} 34. Qxc4 {[%emt 0:00:07]} Qb7 {[%emt 0:00:32]} 35. Qc1 {[%emt 0:04:08]} g5 {[%emt 0:02:01]} 36. Qe3 {[%emt 0:00:10]} h6 {[%emt 0:00:16]} 37. h4 {[%emt 0:01:45]} Nf4+ {[%emt 0:00:26]} 38. Kh2 {[%emt 0:01:16]} Qc7 {[%emt 0:00:51]} 39. hxg5 {[%emt 0:00:53]} Ne6+ {[%emt 0:00:27]} 40. Kg1 {[%emt 0:00:59]} hxg5 {[%emt 0:00:41]} 41. Nxg5 {[%emt 0:31:38]} Nf4 {[%emt 0:02:40]} 42. Ne4 {[%emt 0:00:00]} Qe5 {[%emt 0:01:45]} 43. Ng3 {[%emt 0:00:00]} Qa1+ {[%emt 0:03:48]} 44. Kh2 {[%emt 0:00:00]} Qf6 {[%emt 0:02:20]} 45. Nf5 {[%emt 0:00:00]} Ne6 {[%emt 0:04:21]} 46. Qxa7 {[%emt 0:00:00]} Qe5+ {[%emt 0:01:27]} 47. Ng3 {[%emt 0:00:00]} Qf4 {[%emt 0:00:58]} 48. Qe3 {[%emt 0:00:00]} Qxg4 {[%emt 0:00:21]} 49. Qe4 {[%emt 0:00:00]} Qd1 {[%emt 0:06:05]} 50. Qe2 {[%emt 0:01:30]} Qd5 {[%emt 0:02:49]} 51. Qg4+ {[%emt 0:00:59]} Kf8 {[%emt 0:00:17]} 52. Qb4+ {[%emt 0:01:51]} Kg8 {[%emt 0:00:42]} 53. Qb8+ {[%emt 0:01:52]} Kg7 {[%emt 0:00:32]} 54. Qb4 {[%emt 0:00:22]} Qf3 {[%emt 0:00:38]} 55. Kg1 {[%emt 0:01:50]} 1/2-1/2

[Event "18th Prague Open-A 2019"]
[Site "Prague"]
[Date "2019.01.17"]
[Round "8"]
[White "Schnabel, Ralf"]
[Black "Szpar, Milosz"]
[Result "0-1"]
[ECO "B34"]
[WhiteElo "2206"]
[BlackElo "2339"]
[Annotator "NA"]
[PlyCount "76"]
[EventDate "2019.01.11"]
[EventType "swiss"]
[EventCountry "CZE"]
[SourceTitle "playchess.com"]
[Source "ChessBase"]
[SourceQuality "1"]
[TimeControl "40/5400+30:1800+30"]

1. e4 {[%emt 0:00:00]} c5 {[%emt 0:00:00]} 2. Nf3 {[%emt 0:00:00]} Nc6 {[%emt 0:00:00]} 3. d4 {[%emt 0:00:00]} cxd4 {[%emt 0:00:14]} 4. Nxd4 {[%emt 0:00:00]} Nf6 {[%emt 0:00:15]} 5. Nc3 {[%emt 0:00:01]} e5 {[%emt 0:00:05]} 6. Ndb5 {[%emt 0:00:06]} d6 {[%emt 0:00:08]} 7. Nd5 {[%emt 0:00:50]} Nxd5 {[%emt 0:00:41]} 8. exd5 {[%emt 0:00:04]} Nb8 {[%emt 0:00:12]} 9. c4 {[%emt 0:00:22]} a6 {[%emt 0:00:21]} 10. Nc3 {[%emt 0:00:14]} Be7 {[%emt 0:00:23]} 11. Be2 {[%emt 0:00:20]} O-O {[%emt 0:00:24]} 12. O-O {[%emt 0:00:08]} f5 {[%emt 0:00:21]} 13. a3 {[%emt 0:00:28]} Nd7 {[%emt 0:06:01]} 14. b4 {[%emt 0:00:28]} a5 {[%emt 0:03:49]} 15. Bb2 {[%emt 0:05:07]} b6 {[%emt 0:24:03]} 16. Qb3 {[%emt 0:12:44]} Kh8 {[%emt 0:02:11]} 17. Rae1 {[%emt 0:11:21]} g5 {[%emt 0:02:09]} 18. g3 {[%emt 0:04:17]} Rf6 {[%emt 0:11:16]} 19. f4 {[%emt 0:20:57]} gxf4 {[%emt 0:04:12]} 20. gxf4 {[%emt 0:00:04]} Rh6 {[%emt 0:01:52]} 21. Bf3 {[%emt 0:08:11]} Bf6 {[%emt 0:03:20]} 22. Bg2 {[%emt 0:10:14]} Rg6 {[%emt 0:17:18]} 23. Re2 {[%emt 0:02:41]} exf4 {[%emt 0:01:44]} 24. Rxf4 {[%emt 0:02:53]} Ne5 {[%emt 0:00:23]} 25. Nb5 {[%emt 0:00:54]} axb4 {[%emt 0:03:07]} 26. axb4 {[%emt 0:00:06]} Rg5 {[%emt 0:02:02]} 27. Nd4 {[%emt 0:01:48]} Qc7 {[%emt 0:07:00]} 28. Nc6 {[%emt 0:08:49]} Bb7 {[%emt 0:00:28]} 29. Kf1 {[%emt 0:06:28]} Bxc6 {[%emt 0:02:07]} 30. dxc6 {[%emt 0:00:05]} Rag8 {[%emt 0:00:16]} 31. b5 {[%emt 0:01:19]} Qg7 {[%emt 0:01:04]} 32. Qc2 {[%emt 0:02:51]} Ng4 {[%emt 0:00:36]} 33. Bxf6 {[%emt 0:01:18]} Qxf6 {[%emt 0:00:23]} 34. Ke1 {[%emt 0:00:34]} Ra8 {[%emt 0:03:07]} 35. Qb3 {[%emt 0:01:04]} Qa1+ {[%emt 0:01:03]} 36. Kd2 {[%emt 0:00:38]} Ra2+ {[%emt 0:00:13]} 37. Qc2 {[%emt 0:00:01]} Rxc2+ {[%emt 0:01:30]} 38. Kxc2 {[%emt 0:00:02]} Ne3+ {[%emt 0:01:25]} 0-1

[Event "18th Prague Open-A 2019"]
[Site "Prague"]
[Date "2019.01.18"]
[Round "9"]
[White "Gschnitzer, Oswald"]
[Black "Riha, Vojtech"]
[Result "1/2-1/2"]
[ECO "E61"]
[WhiteElo "2370"]
[BlackElo "2145"]
[Annotator "NA"]
[PlyCount "48"]
[EventDate "2019.01.11"]
[EventType "swiss"]
[EventCountry "CZE"]
[SourceTitle "playchess.com"]
[Source "ChessBase"]
[SourceQuality "1"]
[TimeControl "40/5400+30:1800+30"]

1. Nf3 {[%emt 0:00:00]} Nf6 {[%emt 0:00:00]} 2. c4 {[%emt 0:00:02]} d6 {[%emt 0:00:30]} 3. d4 {[%emt 0:00:13]} g6 {[%emt 0:00:19]} 4. Nc3 {[%emt 0:00:12]} Bg7 {[%emt 0:00:07]} 5. Bg5 {[%emt 0:00:47]} h6 {[%emt 0:04:50]} 6. Bh4 {[%emt 0:00:16]} Nbd7 {[%emt 0:02:50]} 7. e3 {[%emt 0:01:28]} O-O {[%emt 0:03:32]} 8. Qc2 {[%emt 0:01:51]} a6 {[%emt 0:03:25]} 9. Be2 {[%emt 0:00:34]} c6 {[%emt 0:04:09]} 10. O-O {[%emt 0:08:30]} b5 {[%emt 0:04:40]} 11. b4 $11 {[%emt 0:10:42] LiveBook: 3 Games} Nb6 {[%emt 0:09:33]} 12. c5 {[%emt 0:07:36]} Nc4 {[%emt 0:00:58]} 13. a4 {[%emt 0:14:14]} d5 {[%emt 0:04:36]} 14. Bxf6 {[%emt 0:07:33]} Bxf6 {[%emt 0:06:56]} 15. e4 {[%emt 0:03:43]} dxe4 {[%emt 0:09:15]} 16. Qxe4 {[%emt 0:00:36]} Bf5 {[%emt 0:10:16]} 17. Qxc6 {[%emt 0:05:09]} Bxd4 {[%emt 0:01:13]} 18. axb5 {[%emt 0:03:48]} Bxc3 {[%emt 0:01:17]} 19. Rad1 {[%emt 0:01:59]} Qc8 {[%emt 0:09:41]} 20. Qxc8 {[%emt 0:03:11]} Rfxc8 {[%emt 0:01:31]} 21. Bxc4 {[%emt 0:03:17]} axb5 {[%emt 0:00:48]} 22. Bxb5 {[%emt 0:00:28]} Bxb4 {[%emt 0:00:24]} 23. c6 {[%emt 0:00:19]} Ra5 {[%emt 0:00:15]} 24. Nd4 {[%emt 0:01:00]} Bc5 {[%emt 0:00:22]} 1/2-1/2